fUSD/lending_fUSD_20250213
["ID","MTS","AMOUNT","RATE_DAILY","PERIOD"]
[352998132,1739481038658,-4793.59,0.00013698,2]
[352998134,1739481038668,-500.0,0.00013698,2]
[352998136,1739481038677,-531.48,0.00013698,2]
[352998138,1739481038687,-1315.56,0.00013698,2]
[352998140,1739481038696,-2112.67,0.00013698,2]
[352998142,1739481038706,-1693.58589735,0.00013698,2]
[352998288,1739481040051,-1109.0,0.00013402,2]
[352998291,1739481040061,-1341.47410265,0.00013698,2]
[352998293,1739481040070,-9788.15,0.00013698,2]
[352998295,1739481040080,-622.6,0.00013698,2]
[352998297,1739481040089,-1762.18,0.00013698,2]
[352998299,1739481040098,-1257.55,0.00013698,2]
[352998301,1739481040107,-3812.35,0.00013698,2]
[352998303,1739481040117,-2114.43,0.00013698,2]
[352998305,1739481040126,-2606.8,0.00013698,2]
[352998307,1739481040136,-47.10169389,0.00013698,2]
[352998327,1739481040324,-926.04830611,0.00013698,2]
[352998329,1739481040334,-2157.5,0.00013698,2]
[352998331,1739481040343,-4826.38,0.00013698,2]
[352998333,1739481040353,-2149.72,0.00013698,2]
[352998335,1739481040363,-966.43,0.00013698,2]
[352998337,1739481040373,-748.83,0.00013698,2]
[352998339,1739481040382,-3975.38,0.00013698,2]
[352998341,1739481040392,-654.65,0.00013698,2]
[352998343,1739481040402,-2377.06,0.00013698,2]
[352998344,1739481040411,-3359.9,0.00013698,2]
[352998345,1739481040421,-2409.35,0.00013698,2]
[352998346,1739481040432,-1779.36,0.00013698,2]
[352998347,1739481040442,-3270.52,0.00013698,2]
[352998348,1739481040452,-3095.38,0.00013698,2]
[352998349,1739481040481,-5056.73,0.00013698,2]
[352998350,1739481040491,-1075.27,0.00013698,2]
[352998351,1739481040500,-1068.72,0.00013698,2]
[352998352,1739481040511,-3942.04,0.00013698,2]
[352998354,1739481040520,-500.0,0.00013698,2]
[352998356,1739481040529,-500.0,0.00013698,2]
[352998358,1739481040539,-2656.89,0.00013698,2]
[352998360,1739481040549,-1903.15,0.00013698,2]
[352998362,1739481040558,-719.34,0.00013698,2]
[352998364,1739481040568,-500.0,0.00013698,2]
[352998366,1739481040577,-1002.2,0.00013698,2]
[352998368,1739481040587,-3523.74,0.00013698,2]
[352998370,1739481040596,-4229.18,0.00013698,2]
[352998372,1739481040606,-500.0,0.00013698,2]
[352998374,1739481040615,-1544.95,0.00013698,2]
[352998376,1739481040625,-500.0,0.00013698,2]
[352998378,1739481040634,-3462.96,0.00013698,2]
[352998380,1739481040643,-505.0112564,0.00013698,2]
[352998382,1739481040652,-500.0,0.00013698,2]
[352998384,1739481040661,-9397.39,0.00013698,2]
[352998386,1739481040670,-660.71,0.00013698,2]
[352998388,1739481040679,-3085.65,0.00013698,2]
[352998390,1739481040689,-3401.25,0.00013698,2]
[352998392,1739481040698,-8483.68,0.00013698,2]
[352998394,1739481040708,-500.0,0.00013698,2]
[352998396,1739481040717,-500.0,0.00013698,2]
[352998398,1739481040727,-3305.06,0.00013698,2]
[352998400,1739481040739,-643.38,0.00013698,2]
[352998402,1739481040748,-778.7,0.00013698,2]
[352998404,1739481040758,-648.53,0.00013698,2]
[352998406,1739481040767,-500.0,0.00013698,2]
[352998408,1739481040776,-736.89,0.00013698,2]
[352998410,1739481040786,-558.23,0.00013698,2]
[352998412,1739481040795,-500.0,0.00013698,2]
[352998414,1739481040805,-181.87184824,0.00013698,2]
[352998416,1739481040815,-579.03,0.00013698,2]
[352998418,1739481040824,-4811.84,0.00013698,2]
[352998420,1739481040834,-2984.07,0.00013698,2]
[352998422,1739481040843,-1228.76,0.00013698,2]
[352998424,1739481040853,-500.0,0.00013698,2]
[352998426,1739481040862,-4535.88,0.00013698,2]
[352998428,1739481040871,-3281.89,0.00013698,2]
[352998430,1739481040880,-502.89,0.00013698,2]
[352998432,1739481040889,-3122.16,0.00013698,2]
[352998434,1739481040898,-475.25751599,0.00013698,2]
[352998446,1739481041011,-588.51248401,0.00013698,2]
[352998448,1739481041022,-500.0,0.00013698,2]
[352998451,1739481041032,-1634.10638662,0.00013698,2]
[352998498,1739481041657,-583.7846823,0.00013698,2]
[352998499,1739481041668,-448.14759547,0.00013698,2]
[352998500,1739481041692,-681.89332647,0.00013698,2]
[352998501,1739481041704,-89.29800914,0.00013698,2]
[352998502,1739481041714,-1260.55,0.00013698,2]
[352998504,1739481041726,-499.04215468,0.00013698,2]
[352998506,1739481041735,-1666.2,0.00013698,2]
[352998507,1739481041744,-1255.51,0.00013698,2]
[352998509,1739481041754,-2204.4,0.00013698,2]
[352998510,1739481041763,-3890.25,0.00013698,2]
[352998511,1739481041774,-1755.74,0.00013698,2]
[352998512,1739481041786,-500.0,0.00013698,2]
[352998513,1739481041798,-1849.85,0.00013698,2]
[352998514,1739481041809,-500.0,0.00013698,2]
[352998515,1739481041819,-611.93,0.00013698,2]
[352998516,1739481041829,-4116.51,0.00013698,2]
[352998517,1739481041839,-3431.47,0.00013698,2]
[352998518,1739481041848,-669.01,0.00013698,2]
[352998519,1739481041858,-2737.67,0.00013698,2]
[352998520,1739481041867,-500.0,0.00013698,2]
[352998521,1739481041877,-500.0,0.00013698,2]
[352998522,1739481041888,-2279.37,0.00013698,2]
[352998523,1739481041897,-1006.85,0.00013698,2]
[352998524,1739481041907,-500.0,0.00013698,2]
[352998525,1739481041917,-500.0,0.00013698,2]
[352998526,1739481041927,-982.62,0.00013698,2]
[352998527,1739481041937,-5157.99,0.00013698,2]
[352998528,1739481041947,-4892.1,0.00013698,2]
[352998529,1739481041956,-1404.28,0.00013698,2]
[352998530,1739481041966,-634.74,0.00013698,2]
[352998531,1739481041975,-500.0,0.00013698,2]
[352998532,1739481041984,-3995.89,0.00013698,2]
[352998533,1739481041993,-3334.24,0.00013698,2]
[352998534,1739481042003,-500.0,0.00013698,2]
[352998535,1739481042012,-500.0,0.00013698,2]
[352998536,1739481042021,-1551.12,0.00013698,2]
[352998537,1739481042030,-532.37,0.00013698,2]
[352998538,1739481042039,-1738.75,0.00013698,2]
[352998539,1739481042049,-715.28,0.00013698,2]
[352998540,1739481042058,-1449.87,0.00013698,2]
[352998541,1739481042067,-755.07,0.00013698,2]
[352998542,1739481042076,-86.61290907,0.00013698,2]
[352998543,1739481042087,-1406.51246176,0.00013698,2]
[352998544,1739481042099,-2958.05462917,0.00013698,2]
[352998545,1739481042108,-1068.74537083,0.00013698,2]
[352998566,1739481046231,-1024.15,0.00013698,2]
[352998569,1739481073575,2382.9006,8.973e-05,2]
[352998570,1739481076719,163.35,0.00010959,2]
[352998571,1739481193002,3512.0898,8.836e-05,2]
[352998572,1739481218273,5000.0,8.973e-05,2]
[352998573,1739481228597,4157.8567,8.836e-05,2]
[352998574,1739481252297,6761.4039,8.836e-05,2]
[352998575,1739481365182,9659.5293,8.836e-05,2]
[352998576,1739481487439,21375.6677,8.836e-05,2]
[352998577,1739481800579,744.8477,8.836e-05,2]
[352998578,1739481897928,1102.83,0.00010375,2]
[352998579,1739481909051,67685.7749,0.0001,2]
[352998580,1739481909083,7005.8663,0.0001,2]
[352998581,1739481909113,156276.23211428,0.0001,2]
[352998583,1739482100704,3879.866,8.699e-05,2]
[352998584,1739482118781,8060.74580266,0.0001,2]
[352998605,1739482232303,-257.97,0.00010137,2]
[352998606,1739482232313,-242.03,0.00011364,2]
[352998607,1739482232538,-257.97,0.00011364,2]
[352998608,1739482232548,-500.0,0.00011364,2]
[352998609,1739482232558,-500.0,0.00011364,2]
[352998610,1739482232569,-5670.70415835,0.00011794,2]
[352998611,1739482232579,-150.0,0.00011795,2]
[352998612,1739482232590,-181.23863571,0.00011966,2]
[352998613,1739482232600,-150.0,0.00012066,2]
[352998614,1739482232611,-1135.63,0.00012226,2]
[352998615,1739482232620,-704.77,0.00012235,2]
[352998616,1739482232630,-1000.0,0.00012238,2]
[352998617,1739482232640,-5861.32,0.00012265,2]
[352998618,1739482232649,-190.29,0.000123,2]
[352998619,1739482232659,-150.0,0.00012312,2]
[352998620,1739482232668,-11006.10023104,0.00012313,2]
[352998621,1739482232680,-12893.89976896,0.00012313,2]
[352998622,1739482232689,-1443.3,0.00012313,2]
[352998623,1739482232699,-301.1,0.00012313,2]
[352998624,1739482232709,-500.0,0.00012315,2]
[352998625,1739482232718,-156.91,0.00012329,2]
[352998626,1739482232728,-2000.0,0.00012389,2]
[352998627,1739482232737,-200.0,0.00012446,2]
[352998628,1739482232747,-968.35,0.00012446,2]
[352998629,1739482232757,-150.0,0.00012452,2]
[352998630,1739482232766,-150.0,0.00012452,2]
[352998631,1739482232775,-150.0,0.00012452,2]
[352998633,1739482232785,-150.0,0.00012452,2]
[352998635,1739482232795,-150.0,0.00012476,2]
[352998637,1739482232804,-150.0,0.00012499,2]
[352998639,1739482232813,-150.0,0.000125,2]
[352998641,1739482232827,-150.0,0.00012522,2]
[352998642,1739482232836,-500.0,0.00012531,3]
[352998644,1739482232846,-150.0,0.00012546,2]
[352998646,1739482232855,-150.0,0.00012551,2]
[352998648,1739482232865,-250.0,0.00012562,2]
[352998650,1739482232874,-150.0,0.00012569,2]
[352998652,1739482232885,-150.0,0.00012578,2]
[352998654,1739482232894,-150.0,0.00012593,2]
[352998656,1739482232904,-2313.43,0.00012613,2]
[352998658,1739482232913,-150.0,0.00012616,2]
[352998659,1739482232923,-1102.83,0.00012639,2]
[352998661,1739482232932,-150.0,0.0001264,2]
[352998662,1739482232942,-150.0,0.0001265,2]
[352998664,1739482232951,-150.0,0.00012663,2]
[352998666,1739482232960,-150.0,0.00012687,2]
[352998668,1739482232970,-150.0,0.00012704,2]
[352998670,1739482232979,-150.0,0.0001271,2]
[352998672,1739482232988,-303.28,0.00012728,2]
[352998674,1739482232998,-181.23863571,0.00012729,2]
[352998676,1739482233008,-150.0,0.00012733,2]
[352998677,1739482233017,-500.0,0.00012734,2]
[352998678,1739482233027,-150.0,0.00012749,2]
[352998679,1739482233036,-150.0,0.00012757,2]
[352998680,1739482233046,-150.0,0.0001278,2]
[352998681,1739482233056,-150.0,0.00012804,2]
[352998682,1739482233065,-150.0,0.00012827,2]
[352998683,1739482233074,-150.0,0.00012829,2]
[352998684,1739482233083,-2080.61,0.00012843,2]
[352998685,1739482233092,-150.0,0.00012847,2]
[352998686,1739482233101,-150.0,0.00012851,2]
[352998688,1739482233111,-184.51,0.0001286,2]
[352998690,1739482233120,-150.0,0.00012874,2]
[352998692,1739482233130,-150.0,0.00012898,2]
[352998694,1739482233140,-150.0,0.00012921,2]
[352998696,1739482233150,-150.0,0.00012945,2]
[352998698,1739482233159,-150.0,0.00012946,2]
[352998700,1739482233169,-150.0,0.00012955,2]
[352998702,1739482233179,-150.0,0.00012968,2]
[352998704,1739482233188,-150.0,0.00012991,2]
[352998706,1739482233197,-550.0,0.00013,2]
[352998708,1739482233207,-150.0,0.00013015,2]
[352998710,1739482233217,-166.69,0.00013019,2]
[352998712,1739482233226,-150.0,0.00013038,2]
[352998714,1739482233237,-150.0,0.00013045,2]
[352998716,1739482233247,-150.0,0.00013062,2]
[352998717,1739482233257,-150.0,0.00013081,2]
[352998719,1739482233267,-150.0,0.00013085,2]
[352998721,1739482233276,-1000.0,0.000131,4]
[352998723,1739482233287,-150.0,0.00013109,2]
[352998726,1739482233298,-150.0,0.00013132,2]
[352998728,1739482233308,-150.0,0.00013144,2]
[352998730,1739482233318,-150.0,0.00013144,2]
[352998732,1739482233328,-150.0,0.00013156,2]
[352998734,1739482233338,-150.0,0.00013179,2]
[352998735,1739482233348,-2000.0,0.000132,4]
[352998737,1739482233358,-150.0,0.00013202,2]
[352998740,1739482233368,-150.0,0.00013207,2]
[352998741,1739482233378,-150.0,0.00013226,2]
[352998743,1739482233387,-150.0,0.00013243,2]
[352998745,1739482233396,-150.0,0.00013249,2]
[352998747,1739482233407,-150.0,0.00013273,2]
[352998749,1739482233416,-150.0,0.00013296,2]
[352998751,1739482233425,-3000.0,0.000133,4]
[352998753,1739482233435,-150.0,0.0001332,2]
[352998755,1739482233444,-150.0,0.00013333,2]
[352998757,1739482233454,-150.0,0.00013341,2]
[352998759,1739482233464,-150.0,0.00013343,2]
[352998761,1739482233473,-150.0,0.00013367,2]
[352998763,1739482233482,-150.0,0.0001339,2]
[352998765,1739482233492,-255.0,0.00013396,2]
[352998767,1739482233502,-1955.69735533,0.000134,4]
[352998771,1739482233529,-1368.93615679,0.000134,4]
[352998773,1739482233541,-675.36648788,0.000134,4]
[352998775,1739482233551,-150.0,0.00013414,2]
[352998777,1739482233562,-283.2507235,0.00013424,2]
[352998779,1739482233572,-1017.34954163,0.00013424,2]
[352998781,1739482233583,-150.0,0.00013437,2]
[352998783,1739482233592,-150.0,0.0001344,2]
[352998785,1739482233602,-150.0,0.00013458,2]
[352998787,1739482233611,-150.0,0.0001346,2]
[352998789,1739482233620,-150.0,0.00013484,2]
[352998791,1739482233630,-5100.0,0.000135,4]
[352998793,1739482233640,-150.0,0.00013507,2]
[352998795,1739482233650,-150.0,0.00013531,2]
[352998797,1739482233660,-150.0,0.00013539,2]
[352998799,1739482233670,-438.93,0.0001355,2]
[352998801,1739482233680,-438.93,0.0001355,2]
[352998803,1739482233690,-438.93,0.0001355,2]
[352998805,1739482233700,-879.35,0.0001355,2]
[352998807,1739482233710,-150.0,0.00013554,2]
[352998809,1739482233719,-3540.20922,0.0001356,2]
[352998811,1739482233728,-775.49,0.00013562,2]
[352998813,1739482233739,-150.0,0.00013578,2]
[352998815,1739482233749,-431.95362761,0.00013584,2]
[352998817,1739482233758,-150.0,0.00013584,2]
[352998819,1739482233767,-3733.92536544,0.00013598,2]
[352998821,1739482233777,-2315.25927591,0.00013598,2]
[352998823,1739482233787,-1000.0,0.000136,4]
[352998825,1739482233797,-150.0,0.00013601,2]
[352998827,1739482233806,-150.0,0.00013603,2]
[352998829,1739482233816,-150.0,0.00013625,2]
[352998831,1739482233828,-150.0,0.00013628,2]
[352998833,1739482233839,-152.0,0.00013632,3]
[352998835,1739482233849,-150.0,0.00013638,2]
[352998837,1739482233858,-3733.92536541,0.00013644,2]
[352998839,1739482233868,-2315.25927587,0.00013644,2]
[352998840,1739482233878,-1000.0,0.00013646,2]
[352998841,1739482233887,-150.0,0.00013646,2]
[352998842,1739482233896,-150.0,0.00013648,2]
[352998843,1739482233907,-150.0,0.00013648,2]
[352998844,1739482233918,-1000.0,0.00013653,2]
[352998845,1739482233928,-1600.0,0.00013654,2]
[352998846,1739482233937,-150.0,0.00013668,2]
[352998847,1739482233947,-500.0,0.0001367,2]
[352998848,1739482233957,-2000.0,0.0001367,2]
[352998849,1739482233967,-200.0,0.0001367,2]
[352998851,1739482233976,-150.0,0.00013671,2]
[352998853,1739482233986,-158.92334666,0.00013678,2]
[352998855,1739482233996,-3733.92536541,0.00013689,2]
[352998857,1739482234007,-2315.25927587,0.00013689,2]
[352998859,1739482234017,-150.0,0.00013695,2]
[352998861,1739482234026,-2597.078,0.00013697,2]
[352998863,1739482234037,-177.546,0.00013697,2]
[352998865,1739482234046,-1046.0104358,0.00013697,3]
[352998867,1739482234056,-1000.0,0.00013698,2]
[352998869,1739482234065,-1000.0,0.00013698,2]
[352998872,1739482234076,-1000.0,0.00013698,2]
[352998873,1739482234086,-1000.0,0.00013698,2]
[352998874,1739482234095,-1000.0,0.00013698,2]
[352998875,1739482234105,-1000.0,0.00013698,2]
[352998876,1739482234115,-1000.0,0.00013698,2]
[352998878,1739482234124,-1000.0,0.00013698,2]
[352998880,1739482234133,-1000.0,0.00013698,2]
[352998882,1739482234143,-1000.0,0.00013698,2]
[352998884,1739482234153,-1000.0,0.00013698,2]
[352998886,1739482234162,-1000.0,0.00013698,2]
[352998888,1739482234171,-1000.0,0.00013698,2]
[352998890,1739482234180,-1000.0,0.00013698,2]
[352998892,1739482234189,-1000.0,0.00013698,2]
[352998894,1739482234198,-1000.0,0.00013698,2]
[352998896,1739482234208,-1000.0,0.00013698,2]
[352998898,1739482234220,-1000.0,0.00013698,2]
[352998900,1739482234230,-1000.0,0.00013698,2]
[352998902,1739482234240,-1000.0,0.00013698,2]
[352998904,1739482234249,-1000.0,0.00013698,2]
[352998906,1739482234259,-1000.0,0.00013698,2]
[352998907,1739482234270,-1000.0,0.00013698,2]
[352998908,1739482234280,-1000.0,0.00013698,2]
[352998909,1739482234290,-1000.0,0.00013698,2]
[352998910,1739482234549,-1000.0,0.00013698,2]
[352998911,1739482234578,-1000.0,0.00013698,2]
[352998912,1739482234588,-1000.0,0.00013698,2]
[352998913,1739482234598,-431.24411773,0.00013698,2]
[352998914,1739482234607,-200.0,0.00013698,2]
[352998915,1739482234617,-500.0,0.00013698,2]
[352998916,1739482234627,-531.38,0.00013698,2]
[352998917,1739482234638,-500.0,0.00013698,2]
[352998918,1739482234647,-810.27,0.00013698,2]
[352998919,1739482234656,-593.69,0.00013698,2]
[352998920,1739482234666,-500.0,0.00013698,2]
[352998921,1739482234676,-353.35313346,0.00013698,2]
[352998922,1739482234685,-684.12,0.00013698,2]
[352998923,1739482234694,-882.14,0.00013698,2]
[352998924,1739482234704,-500.0,0.00013698,2]
[352998925,1739482234714,-500.0,0.00013698,2]
[352998926,1739482234723,-390.80125821,0.00013698,2]
[352998927,1739482234733,-500.0,0.00013698,2]
[352998928,1739482234743,-715.65,0.00013698,2]
[352998929,1739482234753,-630.39,0.00013698,2]
[352998930,1739482234763,-500.0,0.00013698,2]
[352998931,1739482234772,-500.0,0.00013698,2]
[352998932,1739482234783,-525.41,0.00013698,2]
[352998933,1739482234792,-500.0,0.00013698,2]
[352998934,1739482234801,-500.0,0.00013698,2]
[352998935,1739482234811,-500.0,0.00013698,2]
[352998936,1739482234824,-735.5,0.00013698,2]
[352998937,1739482234835,-500.0,0.00013698,2]
[352998938,1739482234845,-500.0,0.00013698,2]
[352998939,1739482234855,-500.0,0.00013698,2]
[352998940,1739482234867,-508.16,0.00013698,2]
[352998941,1739482234878,-500.0,0.00013698,2]
[352998942,1739482234887,-1054.27,0.00013698,2]
[352998943,1739482234898,-500.0,0.00013698,2]
[352998944,1739482234910,-500.0,0.00013698,2]
[352998945,1739482234920,-500.0,0.00013698,2]
[352998946,1739482234929,-714.36,0.00013698,2]
[352998947,1739482234939,-500.0,0.00013698,2]
[352998948,1739482234950,-500.0,0.00013698,2]
[352998949,1739482234961,-584.48,0.00013698,2]
[352998950,1739482234971,-616.32,0.00013698,2]
[352998951,1739482234981,-500.0,0.00013698,2]
[352998952,1739482234991,-500.0,0.00013698,2]
[352998953,1739482235000,-500.0,0.00013698,2]
[352998954,1739482235010,-818.19,0.00013698,2]
[352998955,1739482235020,-531.51,0.00013698,2]
[352998956,1739482235033,-500.0,0.00013698,2]
[352998957,1739482235043,-500.0,0.00013698,2]
[352998958,1739482235052,-500.0,0.00013698,2]
[352998959,1739482235062,-500.0,0.00013698,2]
[352998960,1739482235072,-500.0,0.00013698,2]
[352998961,1739482235081,-500.0,0.00013698,2]
[352998962,1739482235091,-500.0,0.00013698,2]
[352998963,1739482235102,-500.0,0.00013698,2]
[352998964,1739482235111,-500.0,0.00013698,2]
[352998965,1739482235122,-980.89,0.00013698,2]
[352998966,1739482235131,-702.19,0.00013698,2]
[352998967,1739482235142,-751.51,0.00013698,2]
[352998968,1739482235151,-500.0,0.00013698,2]
[352998969,1739482235161,-500.0,0.00013698,2]
[352998970,1739482235171,-546.32,0.00013698,2]
[352998971,1739482235180,-500.0,0.00013698,2]
[352998972,1739482235190,-500.0,0.00013698,2]
[352998973,1739482235200,-500.0,0.00013698,2]
[352998974,1739482235209,-244.28066539,0.00013698,2]
[352998975,1739482235231,-499.59933461,0.00013698,2]
[352998976,1739482235240,-500.0,0.00013698,2]
[352998977,1739482235250,-81.39926868,0.00013698,2]
[352998979,1739482238312,-418.60073132,0.00013698,2]
[352998980,1739482238322,-500.0,0.00013698,2]
[352998981,1739482238332,-500.0,0.00013698,2]
[352998982,1739482238343,-500.0,0.00013698,2]
[352998983,1739482238352,-500.0,0.00013698,2]
[352998984,1739482238362,-667.48,0.00013698,2]
[352998985,1739482238372,-870.43,0.00013698,2]
[352998986,1739482238381,-500.0,0.00013698,2]
[352998987,1739482238391,-500.0,0.00013698,2]
[352998988,1739482238401,-500.0,0.00013698,2]
[352998989,1739482238411,-500.0,0.00013698,2]
[352998990,1739482238421,-500.0,0.00013698,2]
[352998991,1739482238431,-500.0,0.00013698,2]
[352998993,1739482238440,-999.93,0.00013698,2]
[352998995,1739482238450,-500.0,0.00013698,2]
[352998997,1739482238460,-500.0,0.00013698,2]
[352998999,1739482238470,-500.0,0.00013698,2]
[352999001,1739482238480,-572.00902521,0.00013698,2]
[352999006,1739482238531,-27.87097479,0.00013698,2]
[352999008,1739482238541,-30.73786607,0.00013698,2]
[352999011,1739482238553,-584.26213393,0.00013698,2]
[352999014,1739482238563,-500.0,0.00013698,2]
[352999015,1739482238572,-500.0,0.00013698,2]
[352999019,1739482238582,-500.0,0.00013698,2]
[352999021,1739482238591,-500.0,0.00013698,2]
[352999023,1739482238600,-500.0,0.00013698,2]
[352999024,1739482238610,-503.99,0.00013698,2]
[352999026,1739482238620,-500.0,0.00013698,2]
[352999028,1739482238629,-947.71,0.00013698,2]
[352999030,1739482238639,-500.0,0.00013698,2]
[352999032,1739482238648,-632.52,0.00013698,2]
[352999034,1739482238658,-389.52006695,0.00013698,2]
[352999036,1739482238667,-630.62,0.00013698,2]
[352999038,1739482238676,-876.4,0.00013698,2]
[352999040,1739482238685,-627.64,0.00013698,2]
[352999042,1739482238695,-500.0,0.00013698,2]
[352999044,1739482238704,-500.0,0.00013698,2]
[352999046,1739482238714,-1342.53,0.00013698,2]
[352999048,1739482238723,-500.0,0.00013698,2]
[352999050,1739482238732,-631.97605859,0.00013698,2]
[352999052,1739482238742,-500.0,0.00013698,2]
[352999054,1739482238752,-500.0,0.00013698,2]
[352999056,1739482238762,-534.03,0.00013698,2]
[352999058,1739482238771,-843.09,0.00013698,2]
[352999060,1739482238780,-500.0,0.00013698,2]
[352999062,1739482238790,-500.0,0.00013698,2]
[352999064,1739482238799,-194.225419,0.00013698,2]
[352999066,1739482238809,-500.0,0.00013698,2]
[352999068,1739482238819,-194.225419,0.00013698,2]
[352999070,1739482238830,-187.88511004,0.00013698,2]
[352999072,1739482238839,-104.14852525,0.00013698,2]
[352999073,1739482238852,-526.67147475,0.00013698,2]
[352999076,1739482238862,-473.32852525,0.00013698,2]
[352999078,1739482238875,-26.67147475,0.00013698,2]
[352999080,1739482238884,-500.0,0.00013698,2]
[352999082,1739482238894,-1135.89,0.00013698,2]
[352999084,1739482238907,-500.0,0.00013698,2]
[352999086,1739482238917,-1182.6,0.00013698,2]
[352999087,1739482238926,-602.71,0.00013698,2]
[352999089,1739482238936,-500.0,0.00013698,2]
[352999091,1739482238945,-500.0,0.00013698,2]
[352999093,1739482238956,-500.0,0.00013698,2]
[352999095,1739482238969,-505.14052516,0.00013698,2]
[352999241,1739482240330,-422.9545937,0.00013596,2]
[352999243,1739482240340,-375.38947484,0.00013698,2]
[352999245,1739482240350,-639.79,0.00013698,2]
[352999246,1739482240359,-1904.64,0.00013698,2]
[352999247,1739482240369,-901.45,0.00013698,2]
[352999248,1739482240379,-959.47,0.00013698,2]
[352999249,1739482240389,-750.48,0.00013698,2]
[352999250,1739482240399,-1562.59,0.00013698,2]
[352999251,1739482240408,-648.33,0.00013698,2]
[352999252,1739482240417,-500.0,0.00013698,2]
[352999253,1739482240427,-748.11027669,0.00013698,2]
[352999254,1739482240438,-778.94972331,0.00013698,2]
[352999255,1739482240448,-1306.99,0.00013698,2]
[352999256,1739482240457,-500.0,0.00013698,2]
[352999257,1739482240466,-500.0,0.00013698,2]
[352999258,1739482240478,-1318.37,0.00013698,2]
[352999260,1739482240487,-738.46,0.00013698,2]
[352999262,1739482240496,-500.0,0.00013698,2]
[352999264,1739482240506,-858.79,0.00013698,2]
[352999266,1739482240516,-1722.08,0.00013698,2]
[352999267,1739482240525,-1798.55,0.00013698,2]
[352999269,1739482240535,-782.27,0.00013698,2]
[352999271,1739482240545,-614.12548423,0.00013698,2]
[352999274,1739482240555,-500.0,0.00013698,2]
[352999275,1739482240564,-991.1,0.00013698,2]
[352999277,1739482240573,-226.7419996,0.00013698,2]
[352999279,1739482240583,-1456.79,0.00013698,2]
[352999282,1739482240593,-664.14,0.00013698,2]
[352999284,1739482240602,-879.95,0.00013698,2]
[352999286,1739482240611,-500.0,0.00013698,2]
[352999288,1739482240620,-500.0,0.00013698,2]
[352999290,1739482240629,-79.22776212,0.00013698,2]
[352999292,1739482240641,-753.05223788,0.00013698,2]
[352999294,1739482240650,-500.0,0.00013698,2]
[352999296,1739482240659,-675.13,0.00013698,2]
[352999298,1739482240669,-500.0,0.00013698,2]
[352999300,1739482240679,-1082.03,0.00013698,2]
[352999302,1739482240688,-891.17,0.00013698,2]
[352999304,1739482240697,-631.55,0.00013698,2]
[352999306,1739482240706,-596.66,0.00013698,2]
[352999308,1739482240715,-706.26,0.00013698,2]
[352999310,1739482240725,-500.0,0.00013698,2]
[352999312,1739482240734,-332.27770625,0.00013698,2]
[352999385,1739482241442,-1375.11229375,0.00013698,2]
[352999387,1739482241451,-932.01,0.00013698,2]
[352999389,1739482241461,-1441.35,0.00013698,2]
[352999391,1739482241471,-1258.4,0.00013698,2]
[352999393,1739482241481,-500.0,0.00013698,2]
[352999395,1739482241490,-506.71,0.00013698,2]
[352999397,1739482241500,-942.0,0.00013698,2]